fUSD/lending_fUSD_20250525
["ID","MTS","AMOUNT","RATE_DAILY","PERIOD"]
[362273998,1748140243202,-420.0,0.00019999,2]
[362274000,1748140243212,-420.0,0.00019999,2]
[362274001,1748140243222,-393.75001935,0.00019999,2]
[362274002,1748140243231,-420.0,0.00019999,2]
[362274003,1748140243240,-420.0,0.00019999,2]
[362274004,1748140243249,-420.0,0.00019999,2]
[362274005,1748140243259,-420.0,0.00019999,2]
[362274006,1748140243268,-420.0,0.00019999,2]
[362274007,1748140243277,-420.0,0.00019999,2]
[362274009,1748140243287,-420.0,0.00019999,2]
[362274011,1748140243296,-965.53,0.00019999,2]
[362274012,1748140243306,-420.0,0.00019999,2]
[362274013,1748140243315,-965.53,0.00019999,2]
[362274014,1748140243324,-420.0,0.00019999,2]
[362274015,1748140243334,-965.53,0.00019999,2]
[362274016,1748140243343,-420.0,0.00019999,2]
[362274017,1748140243352,-965.53,0.00019999,2]
[362274018,1748140243361,-249.50562501,0.00019999,2]
[362274019,1748140243370,-965.53,0.00019999,2]
[362274021,1748140243380,-965.53,0.00019999,2]
[362274022,1748140243389,-965.53,0.00019999,2]
[362274024,1748140243399,-965.53,0.00019999,2]
[362274027,1748140243408,-965.53,0.00019999,2]
[362274028,1748140243418,-965.53,0.00019999,2]
[362274030,1748140243427,-965.53,0.00019999,2]
[362274031,1748140243436,-965.53,0.00019999,2]
[362274032,1748140243446,-965.53,0.00019999,2]
[362274033,1748140243455,-965.53,0.00019999,2]
[362274034,1748140243464,-965.53,0.00019999,2]
[362274035,1748140243474,-965.53,0.00019999,2]
[362274036,1748140243483,-965.53,0.00019999,2]
[362274037,1748140243492,-965.53,0.00019999,2]
[362274038,1748140243501,-965.53,0.00019999,2]
[362274039,1748140243511,-965.53,0.00019999,2]
[362274040,1748140243520,-965.53,0.00019999,2]
[362274041,1748140243529,-965.53,0.00019999,2]
[362274042,1748140243538,-965.53,0.00019999,2]
[362274043,1748140243547,-965.73,0.00019999,2]
[362274044,1748140243555,-420.0,0.00019999,2]
[362274045,1748140243565,-420.0,0.00019999,2]
[362274046,1748140243574,-420.0,0.00019999,2]
[362274047,1748140243583,-420.0,0.00019999,2]
[362274048,1748140243593,-420.0,0.00019999,2]
[362274049,1748140243602,-420.0,0.00019999,2]
[362274050,1748140243611,-420.0,0.00019999,2]
[362274051,1748140243620,-420.0,0.00019999,2]
[362274052,1748140243628,-420.0,0.00019999,2]
[362274053,1748140243638,-420.0,0.00019999,2]
[362274054,1748140243659,-420.0,0.00019999,2]
[362274055,1748140243669,-420.0,0.00019999,2]
[362274056,1748140243678,-420.0,0.00019999,2]
[362274057,1748140243688,-420.0,0.00019999,2]
[362274058,1748140243700,-563.73409924,0.00019999,2]
[362274059,1748140243710,-420.0,0.00019999,2]
[362274060,1748140243720,-420.0,0.00019999,2]
[362274061,1748140243731,-420.0,0.00019999,2]
[362274062,1748140243742,-420.0,0.00019999,2]
[362274063,1748140243752,-420.0,0.00019999,2]
[362274064,1748140243762,-420.0,0.00019999,2]
[362274065,1748140243771,-420.0,0.00019999,2]
[362274066,1748140243780,-420.0,0.00019999,2]
[362274067,1748140243790,-420.0,0.00019999,2]
[362274068,1748140243800,-420.0,0.00019999,2]
[362274070,1748140243810,-420.0,0.00019999,2]
[362274072,1748140243820,-194.71636161,0.00019999,2]
[362274074,1748140243830,-432.54055651,0.00019999,2]
[362274075,1748140243839,-420.0,0.00019999,2]
[362274076,1748140243849,-420.0,0.00019999,2]
[362274077,1748140243859,-420.0,0.00019999,2]
[362274079,1748140243868,-420.0,0.00019999,2]
[362274081,1748140243878,-420.0,0.00019999,2]
[362274083,1748140243887,-420.0,0.00019999,2]
[362274085,1748140243897,-716.43,0.00019999,2]
[362274087,1748140243906,-420.0,0.00019999,2]
[362274089,1748140243916,-716.43,0.00019999,2]
[362274091,1748140243925,-420.0,0.00019999,2]
[362274093,1748140243935,-420.0,0.00019999,2]
[362274096,1748140243945,-716.43,0.00019999,2]
[362274099,1748140243954,-420.0,0.00019999,2]
[362274102,1748140243966,-716.43,0.00019999,2]
[362274104,1748140243977,-420.0,0.00019999,2]
[362274106,1748140243988,-716.43,0.00019999,2]
[362274108,1748140243998,-420.0,0.00019999,2]
[362274110,1748140244008,-716.43,0.00019999,2]
[362274112,1748140244018,-420.0,0.00019999,2]
[362274114,1748140244027,-716.43,0.00019999,2]
[362274116,1748140244037,-420.0,0.00019999,2]
[362274118,1748140244048,-716.43,0.00019999,2]
[362274119,1748140244058,-420.0,0.00019999,2]
[362274120,1748140244067,-716.43,0.00019999,2]
[362274121,1748140244077,-420.0,0.00019999,2]
[362274122,1748140244086,-716.43,0.00019999,2]
[362274123,1748140244096,-420.0,0.00019999,2]
[362274124,1748140244106,-716.43,0.00019999,2]
[362274125,1748140244115,-420.0,0.00019999,2]
[362274126,1748140244124,-420.0,0.00019999,2]
[362274127,1748140244134,-420.0,0.00019999,2]
[362274128,1748140244143,-716.43,0.00019999,2]
[362274129,1748140244153,-420.0,0.00019999,2]
[362274130,1748140244162,-716.43,0.00019999,2]
[362274131,1748140244171,-420.0,0.00019999,2]
[362274132,1748140244181,-716.43,0.00019999,2]
[362274133,1748140244190,-241.75913178,0.00019999,2]
[362274134,1748140244199,-716.43,0.00019999,2]
[362274135,1748140244209,-716.43,0.00019999,2]
[362274136,1748140244218,-716.43,0.00019999,2]
[362274137,1748140244228,-716.43,0.00019999,2]
[362274138,1748140244238,-716.43,0.00019999,2]
[362274139,1748140244248,-716.43,0.00019999,2]
[362274140,1748140244258,-716.43,0.00019999,2]
[362274141,1748140244267,-716.43,0.00019999,2]
[362274142,1748140244277,-716.43,0.00019999,2]
[362274143,1748140244287,-716.5933,0.00019999,2]
[362274144,1748140244296,-611.24,0.00019999,2]
[362274145,1748140244306,-611.24,0.00019999,2]
[362274146,1748140244315,-611.24,0.00019999,2]
[362274147,1748140244324,-611.24,0.00019999,2]
[362274148,1748140244333,-611.24,0.00019999,2]
[362274149,1748140244343,-611.24,0.00019999,2]
[362274150,1748140244353,-611.24,0.00019999,2]
[362274151,1748140244362,-611.24,0.00019999,2]
[362274152,1748140244371,-611.24,0.00019999,2]
[362274153,1748140244381,-611.24,0.00019999,2]
[362274154,1748140244390,-611.24,0.00019999,2]
[362274155,1748140244399,-611.24,0.00019999,2]
[362274156,1748140244409,-611.24,0.00019999,2]
[362274157,1748140244419,-611.24,0.00019999,2]
[362274158,1748140244429,-611.24,0.00019999,2]
[362274159,1748140244438,-611.24,0.00019999,2]
[362274160,1748140244448,-611.24,0.00019999,2]
[362274161,1748140244457,-611.24,0.00019999,2]
[362274162,1748140244467,-20000.0,0.00019999,2]
[362274163,1748140244476,-537.0,0.0002,2]
[362274164,1748140244486,-559.4250461,0.0002,2]
[362274165,1748140244495,-585942.85226879,0.0002,2]
[362274166,1748140244505,-489288.7832906,0.0002,2]
[362274167,1748140244514,-92183.92153208,0.0002,2]
[362274168,1748140244524,-301.95675957,0.0002,2]
[362274169,1748140244534,-10000.0,0.0002,2]
[362274170,1748140244543,-1486.15391794,0.0002,2]
[362274171,1748140244553,-482.34879978,0.0002,2]
[362274172,1748140244562,-3950.0,0.0002,2]
[362274173,1748140244571,-1254.93221124,0.0002,2]
[362274174,1748140244581,-11873.64210677,0.0002,2]
[362274175,1748140244590,-1012.57462297,0.0002,2]
[362274176,1748140244600,-2774.21982013,0.0002,2]
[362274177,1748140244609,-89196.54578271,0.0002,2]
[362274178,1748140244619,-1000.0,0.0002,2]
[362274179,1748140244628,-324628.31584304,0.0002,2]
[362274180,1748140244638,-127306.32803701,0.0002,2]
[362274181,1748140244647,-60991.48683646,0.0002,2]
[362274182,1748140244684,-611.24,0.00019999,2]
[362274183,1748140244693,-804.6474024,0.0002,2]
[362274184,1748140244704,-8517.4999985,0.0002,2]
[362274185,1748140244772,-611.24,0.00019999,2]
[362274186,1748140244782,-611.24,0.00019999,2]
[362274187,1748140244791,-611.24,0.00019999,2]
[362274188,1748140244802,-611.24,0.00019999,2]
[362274189,1748140244811,-445.46672047,0.00019999,2]
[362274190,1748140244825,-165.83327953,0.00019999,2]
[362274191,1748140244835,-368.34140177,0.0002,2]
[362274192,1748140244849,-1020.92920097,0.0002,2]
[362274193,1748140244860,-18981.12254572,0.0002,2]
[362274195,1748140246496,-91333.09801296,0.0002,2]
[362274196,1748140246509,-41113.9204543,0.0002,2]
[362274210,1748140286695,250.0,0.00015,2]
[362274211,1748140287759,22.1364,0.00017,2]
[362274212,1748140287784,277.8636,0.00017,2]
[362274213,1748140633236,491.0,0.00026,120]
[362274215,1748140873734,355.07,0.00013699,2]
[362274217,1748141207350,-269.57,0.00018667,2]
[362274218,1748141207373,-76.89249941,0.00018667,2]
[362274219,1748141250100,-1351.96750059,0.00018667,2]
[362274220,1748141250122,-350.0,0.00019,2]
[362274221,1748141250144,-155.95,0.00019023,2]
[362274222,1748141250165,-28.45902182,0.00019023,7]
[362274224,1748141378807,441.6664,0.00016752,2]
[362274225,1748141378827,112.6436,0.00016752,2]
[362274227,1748141431667,-315.75,0.00018685,2]
[362274228,1748141431676,-200.37369783,0.00018928,2]
[362274229,1748141431685,-554.31,0.00019016,2]
[362274230,1748141431694,-121.54097818,0.00019023,7]
[362274231,1748141431703,-155.95,0.00019033,2]
[362274232,1748141431713,-155.95,0.00019042,2]
[362274233,1748141431722,-155.95,0.00019052,2]
[362274234,1748141431731,-155.95,0.00019061,2]
[362274235,1748141431740,-155.95,0.00019071,2]
[362274236,1748141431749,-155.95,0.0001908,2]
[362274237,1748141431758,-155.95,0.0001909,2]
[362274238,1748141431767,-155.95,0.00019099,2]
[362274239,1748141431776,-116.26657408,0.00019102,2]
[362274240,1748141431788,-217.03342592,0.00019102,2]
[362274241,1748141431797,-168.77,0.00019103,2]
[362274242,1748141431809,-155.95,0.00019109,2]
[362274243,1748141431818,-155.95,0.00019118,2]
[362274244,1748141431827,-200.0,0.00019123,2]
[362274245,1748141431838,-250.0,0.00019231,2]
[362274246,1748141431847,-353.58,0.000193,2]
[362274247,1748141431856,-353.58,0.00019378,2]
[362274248,1748141431866,-152.22748483,0.000194,2]
[362274249,1748141431877,-554.93251517,0.000194,2]
[362274250,1748141431886,-353.58,0.000194,2]
[362274251,1748141431896,-395.30011757,0.00019427,2]
[362274253,1748141432145,-454.631472,0.00019427,2]
[362274254,1748141432154,-1200.0,0.00019499,2]
[362274255,1748141432164,-348.468528,0.000195,2]
[362274256,1748141432179,-5.111472,0.000195,2]
[362274257,1748141432189,-353.58,0.000195,2]
[362274258,1748141432198,-151.0,0.00019508,2]
[362274259,1748141432207,-246.804468,0.00019599,2]
[362274260,1748141432216,-172.49,0.00019658,2]
[362274261,1748141432226,-300.0,0.00019724,2]
[362274262,1748141432235,-353.58,0.00019726,2]
[362274263,1748141432244,-707.16,0.00019726,2]
[362274264,1748141432254,-207.4,0.00019887,2]
[362274265,1748141432263,-428.2258,0.00019899,2]
[362274266,1748141432272,-601.86205919,0.000199,2]
[362274267,1748141432281,-601.86205919,0.000199,2]
[362274268,1748141432290,-353.58,0.000199,2]
[362274269,1748141432299,-601.86205919,0.000199,2]
[362274270,1748141432308,-167.8058919,0.00019973,2]
[362274271,1748141432318,-504.44052396,0.00019973,2]
[362274272,1748141432328,-503.91826448,0.00019973,2]
[362274273,1748141432342,-500.0,0.00019973,2]
[362274274,1748141432351,-514.15748161,0.00019973,2]
[362274275,1748141432360,-504.98088473,0.00019973,2]
[362274276,1748141432370,-500.0,0.00019973,2]
[362274277,1748141432381,-151.0,0.00019988,2]
[362274278,1748141432390,-157.08239077,0.00019988,2]
[362274279,1748141432399,-734.64,0.0001999,2]
[362274280,1748141432409,-4455.0843259,0.00019996,2]
[362274281,1748141432419,-1496.609629,0.00019996,2]
[362274282,1748141432428,-29723.3151201,0.00019996,2]
[362274283,1748141432438,-227.2593641,0.00019999,2]
[362274284,1748141432447,-352.40378319,0.00019999,2]
[362274285,1748141432456,-1000.0,0.00019999,2]
[362274286,1748141432466,-500.0,0.00019999,2]
[362274287,1748141432475,-500.0,0.00019999,2]
[362274288,1748141432484,-500.0,0.00019999,2]
[362274289,1748141432493,-204.22,0.00019999,2]
[362274290,1748141432502,-475.76361933,0.00019999,2]
[362274291,1748141432511,-420.0,0.00019999,2]
[362274292,1748141432521,-420.0,0.00019999,2]
[362274293,1748141432530,-420.0,0.00019999,2]
[362274294,1748141432539,-420.0,0.00019999,2]
[362274295,1748141432548,-420.0,0.00019999,2]
[362274296,1748141432558,-420.0,0.00019999,2]
[362274297,1748141432568,-420.0,0.00019999,2]
[362274298,1748141432577,-420.0,0.00019999,2]
[362274299,1748141432586,-344.28,0.00019999,2]
[362274300,1748141432595,-420.0,0.00019999,2]
[362274301,1748141432604,-420.0,0.00019999,2]
[362274302,1748141432615,-420.0,0.00019999,2]
[362274303,1748141432624,-420.0,0.00019999,2]
[362274304,1748141432633,-450.68,0.00019999,2]
[362274305,1748141432642,-420.0,0.00019999,2]
[362274307,1748141432651,-218.42,0.00019999,2]
[362274309,1748141432660,-420.0,0.00019999,2]
[362274311,1748141432670,-434.8,0.00019999,2]
[362274313,1748141432678,-420.0,0.00019999,2]
[362274314,1748141432687,-159.85,0.00019999,2]
[362274315,1748141432697,-1333.37,0.00019999,2]
[362274316,1748141432706,-1333.37,0.00019999,2]
[362274317,1748141432715,-1333.37,0.00019999,2]
[362274318,1748141432724,-1333.37,0.00019999,2]
[362274319,1748141432733,-1333.37,0.00019999,2]
[362274320,1748141432742,-1333.37,0.00019999,2]
[362274321,1748141432751,-1333.37,0.00019999,2]
[362274322,1748141432760,-1333.37,0.00019999,2]
[362274323,1748141432769,-1333.37,0.00019999,2]
[362274324,1748141432778,-1333.37,0.00019999,2]
[362274325,1748141432787,-1333.37,0.00019999,2]
[362274326,1748141432797,-1333.37,0.00019999,2]
[362274327,1748141432807,-1333.37,0.00019999,2]
[362274328,1748141432817,-1333.37,0.00019999,2]
[362274329,1748141432826,-1333.37,0.00019999,2]
[362274330,1748141432835,-1333.37,0.00019999,2]
[362274331,1748141432844,-1333.37,0.00019999,2]
[362274332,1748141432853,-1333.37,0.00019999,2]
[362274333,1748141432862,-626.48205167,0.00019999,2]
[362274335,1748141437708,-629.15218728,0.00019989,2]
[362274336,1748141437718,-301.90571893,0.00019989,2]
[362274337,1748141437728,-77.66401652,0.00019989,2]
[362274364,1748141439702,-551.48817076,0.00019989,2]
[362274365,1748141439712,-629.15218728,0.00019989,2]
[362274366,1748141439722,-629.15218728,0.00019989,2]
[362274367,1748141439731,-629.15218728,0.00019989,2]
[362274368,1748141439740,-629.15218728,0.00019989,2]
[362274369,1748141439750,-629.15218728,0.00019989,2]
[362274370,1748141439759,-629.15218728,0.00019989,2]
[362274371,1748141439768,-629.15218728,0.00019989,2]
[362274372,1748141439778,-629.15218728,0.00019989,2]
[362274373,1748141439787,-629.15218728,0.00019989,2]
[362274374,1748141439796,-629.15218728,0.00019989,2]
[362274375,1748141439805,-629.15218728,0.00019989,2]
[362274376,1748141439814,-629.15218728,0.00019989,2]
[362274377,1748141439823,-629.15218728,0.00019989,2]
[362274378,1748141439832,-629.15218728,0.00019989,2]
[362274379,1748141439841,-629.15218728,0.00019989,2]
[362274380,1748141439850,-629.15218728,0.00019989,2]
[362274381,1748141439859,-629.15218728,0.00019989,2]
[362274382,1748141439868,-629.15218728,0.00019989,2]
[362274383,1748141439877,-629.15218728,0.00019989,2]
[362274384,1748141439887,-629.15218728,0.00019989,2]
[362274385,1748141439896,-629.15218728,0.00019989,2]
[362274386,1748141439905,-629.15218728,0.00019989,2]
[362274387,1748141439914,-629.15218728,0.00019989,2]
[362274388,1748141439923,-629.15218728,0.00019989,2]
[362274389,1748141439933,-629.15218728,0.00019989,2]
[362274390,1748141439943,-629.15218728,0.00019989,2]
[362274391,1748141439953,-629.15218728,0.00019989,2]
[362274392,1748141439962,-629.15218728,0.00019989,2]
[362274393,1748141439971,-629.15218728,0.00019989,2]
[362274394,1748141439980,-629.15218728,0.00019989,2]
[362274395,1748141439989,-629.15218728,0.00019989,2]
[362274396,1748141439998,-629.15218728,0.00019989,2]
[362274397,1748141440007,-629.15218728,0.00019989,2]
[362274398,1748141440017,-629.15218728,0.00019989,2]
[362274399,1748141440026,-629.15218728,0.00019989,2]
[362274400,1748141440035,-629.15218728,0.00019989,2]
[362274401,1748141440045,-629.15218728,0.00019989,2]
[362274402,1748141440054,-629.15218728,0.00019989,2]
[362274403,1748141440063,-629.15218728,0.00019989,2]
[362274404,1748141440073,-629.15218728,0.00019989,2]
[362274405,1748141440082,-629.15218728,0.00019989,2]
[362274406,1748141440092,-629.15218728,0.00019989,2]
[362274408,1748141440101,-629.15218728,0.00019989,2]
[362274410,1748141440111,-629.15218728,0.00019989,2]
[362274411,1748141440120,-629.15218728,0.00019989,2]
[362274412,1748141440130,-629.15218728,0.00019989,2]
[362274413,1748141440139,-629.15218728,0.00019989,2]
[362274414,1748141440148,-629.15218728,0.00019989,2]
[362274415,1748141440158,-629.15218728,0.00019989,2]
[362274416,1748141440167,-629.15218728,0.00019989,2]
[362274417,1748141440177,-629.15218728,0.00019989,2]
[362274418,1748141440187,-629.15218728,0.00019989,2]
[362274419,1748141440196,-629.15218728,0.00019989,2]
[362274420,1748141440206,-629.15218728,0.00019989,2]
[362274421,1748141440215,-629.15218728,0.00019989,2]
[362274422,1748141440225,-629.15218728,0.00019989,2]
[362274423,1748141440234,-629.15218728,0.00019989,2]
[362274424,1748141440247,-629.15218728,0.00019989,2]
[362274425,1748141440265,-706.88794833,0.00019999,2]
[362274426,1748141440275,-1333.37,0.00019999,2]
[362274427,1748141440284,-1333.37,0.00019999,2]
[362274428,1748141440293,-1333.37,0.00019999,2]
[362274429,1748141440303,-1333.37,0.00019999,2]
[362274430,1748141440312,-1333.44688973,0.00019999,2]
[362274431,1748141440321,-420.0,0.00019999,2]
[362274432,1748141440331,-716.43,0.00019999,2]
[362274433,1748141440344,-716.43,0.00019999,2]
[362274434,1748141440354,-716.43,0.00019999,2]
[362274435,1748141440363,-716.43,0.00019999,2]
[362274436,1748141440373,-716.43,0.00019999,2]
[362274437,1748141440382,-716.43,0.00019999,2]
[362274438,1748141440392,-716.43,0.00019999,2]
[362274439,1748141440402,-716.43,0.00019999,2]
[362274440,1748141440411,-716.43,0.00019999,2]
[362274441,1748141440421,-716.43,0.00019999,2]
[362274442,1748141440431,-716.43,0.00019999,2]
[362274443,1748141440440,-716.43,0.00019999,2]
[362274444,1748141440449,-420.0,0.00019999,2]
[362274445,1748141440458,-716.43,0.00019999,2]
[362274446,1748141440468,-716.43,0.00019999,2]
[362274447,1748141440477,-716.43,0.00019999,2]
[362274448,1748141440487,-716.43,0.00019999,2]
[362274449,1748141440496,-716.43,0.00019999,2]
[362274450,1748141440505,-716.43,0.00019999,2]
[362274451,1748141440514,-716.43,0.00019999,2]
[362274452,1748141440524,-716.43,0.00019999,2]
[362274453,1748141440533,-716.43,0.00019999,2]
[362274454,1748141440543,-716.43,0.00019999,2]
[362274455,1748141440552,-716.43,0.00019999,2]
[362274456,1748141440561,-716.5933,0.00019999,2]
[362274457,1748141440571,-420.0,0.00019999,2]
[362274458,1748141440580,-420.0,0.00019999,2]
[362274459,1748141440589,-420.0,0.00019999,2]
[362274460,1748141440600,-420.0,0.00019999,2]
[362274461,1748141440609,-420.0,0.00019999,2]
[362274462,1748141440619,-420.0,0.00019999,2]
[362274463,1748141440629,-420.0,0.00019999,2]
[362274464,1748141440638,-420.0,0.00019999,2]
[362274465,1748141440647,-420.0,0.00019999,2]
[362274466,1748141440656,-420.0,0.00019999,2]
[362274467,1748141440666,-420.0,0.00019999,2]
[362274468,1748141440676,-420.0,0.00019999,2]
[362274469,1748141440686,-420.0,0.00019999,2]
[362274470,1748141440696,-420.0,0.00019999,2]
[362274471,1748141440707,-563.73409924,0.00019999,2]
[362274472,1748141440716,-420.0,0.00019999,2]
[362274473,1748141440726,-420.0,0.00019999,2]
[362274474,1748141440735,-420.0,0.00019999,2]
[362274475,1748141440745,-420.0,0.00019999,2]
[362274476,1748141440754,-420.0,0.00019999,2]
[362274477,1748141440765,-420.0,0.00019999,2]
[362274478,1748141440774,-420.0,0.00019999,2]
[362274479,1748141440784,-420.0,0.00019999,2]
[362274480,1748141440793,-420.0,0.00019999,2]
[362274481,1748141440803,-420.0,0.00019999,2]
[362274482,1748141440814,-420.0,0.00019999,2]
[362274483,1748141440823,-194.71636161,0.00019999,2]
[362274484,1748141440832,-432.54055651,0.00019999,2]
[362274485,1748141440843,-420.0,0.00019999,2]
[362274486,1748141440854,-420.0,0.00019999,2]
[362274487,1748141440865,-420.0,0.00019999,2]
[362274488,1748141440876,-420.0,0.00019999,2]
[362274489,1748141440886,-420.0,0.00019999,2]
[362274490,1748141440896,-420.0,0.00019999,2]
[362274491,1748141440905,-420.0,0.00019999,2]
[362274492,1748141440917,-420.0,0.00019999,2]
[362274493,1748141440927,-420.0,0.00019999,2]
[362274494,1748141440937,-420.0,0.00019999,2]
[362274495,1748141440947,-420.0,0.00019999,2]
[362274496,1748141440956,-420.0,0.00019999,2]
[362274497,1748141440966,-420.0,0.00019999,2]
[362274498,1748141440978,-420.0,0.00019999,2]
[362274499,1748141440989,-420.0,0.00019999,2]
[362274500,1748141440999,-420.0,0.00019999,2]
[362274501,1748141441008,-420.0,0.00019999,2]
[362274502,1748141441018,-420.0,0.00019999,2]
[362274503,1748141441027,-420.0,0.00019999,2]
[362274504,1748141441037,-420.0,0.00019999,2]
[362274505,1748141441047,-420.0,0.00019999,2]
[362274506,1748141441057,-420.0,0.00019999,2]
[362274507,1748141441066,-241.75913178,0.00019999,2]
[362274508,1748141441075,-420.0,0.00019999,2]
[362274509,1748141441085,-420.0,0.00019999,2]
[362274510,1748141441094,-302.68546025,0.00019999,2]
[362274511,1748141441103,-458.43,0.00019999,2]
[362274512,1748141441113,-458.43,0.00019999,2]
[362274513,1748141441122,-458.43,0.00019999,2]
[362274514,1748141441131,-458.43,0.00019999,2]
[362274515,1748141441140,-458.43,0.00019999,2]
[362274516,1748141441150,-458.43,0.00019999,2]
[362274517,1748141441159,-458.43,0.00019999,2]
[362274518,1748141441168,-458.43,0.00019999,2]
[362274519,1748141441177,-458.43,0.00019999,2]
[362274520,1748141441186,-458.43,0.00019999,2]
[362274521,1748141441195,-458.43,0.00019999,2]
[362274522,1748141441205,-458.43,0.00019999,2]
[362274523,1748141441214,-458.43,0.00019999,2]
[362274524,1748141441225,-458.43,0.00019999,2]
[362274525,1748141441235,-458.43,0.00019999,2]
[362274526,1748141441244,-458.43,0.00019999,2]
[362274527,1748141441254,-458.43,0.00019999,2]
[362274528,1748141441263,-458.43,0.00019999,2]
[362274529,1748141441273,-458.43,0.00019999,2]
[362274530,1748141441283,-458.43,0.00019999,2]
[362274531,1748141441292,-458.43,0.00019999,2]
[362274532,1748141441302,-458.43,0.00019999,2]
[362274533,1748141441311,-458.43,0.00019999,2]
[362274534,1748141441321,-458.43,0.00019999,2]
[362274535,1748141441332,-20000.0,0.00019999,2]
[362274536,1748141441344,-533.0,0.0002,2]
[362274537,1748141441354,-559.4250461,0.0002,2]
[362274538,1748141441363,-585942.85226879,0.0002,2]
[362274539,1748141441372,-1191316.699854,0.0002,2]
[362274540,1748141441388,-816.87391084,0.0002,2]
[362274560,1748141445806,-7727.10510766,0.0002,2]
[362274569,1748141984531,337.31,0.00013699,2]
[362274570,1748142039647,299.43,0.00025,60]
[362274571,1748142111914,250.0,0.00015,2]
[362274572,1748142113129,300.0,0.00017,2]
[362274573,1748142371503,207.0,0.0001737,2]
[362274574,1748142405974,800.0,0.00015,2]
[362274575,1748142454170,-150.0,0.00018951,7]
[362274576,1748142454191,-646.74,0.00018983,2]
[362274577,1748142454212,-350.0,0.00019,2]
[362274578,1748142454234,-1200.57220832,0.000191,2]
[362274579,1748142570948,441.6664,0.00017023,2]
[362274580,1748142570971,57.2036,0.00017023,2]
[362274581,1748142631748,-742.76907294,0.0001895,2]
[362274582,1748142631761,-257.23092706,0.0001895,2]
[362274583,1748142631771,-173.2,0.00019042,2]
[362274584,1748142631782,-16.6163229,0.000191,2]
[362274585,1748142631803,-1293.2142858,0.000191,2]
[362274586,1748142631812,-292.88,0.00019168,2]
[362274587,1748142631822,-170.21326723,0.00019287,2]
[362274588,1748142631859,-328.65673277,0.00019287,2]
[362274589,1748142631868,-84.26601727,0.00019475,2]
[362274590,1748142631966,-368.75898712,0.00019475,2]
[362274591,1748142631976,-222.124022,0.00019599,2]
[362274592,1748142631986,-353.58,0.000196,2]
[362274593,1748142631996,-213.49796831,0.00019725,2]
[362274594,1748142632019,-310.17040042,0.00019725,2]
[362274595,1748142632031,-258.49458611,0.00019725,2]
[362274596,1748142632044,-417.83704516,0.00019725,2]
[362274597,1748142632054,-1159.67,0.00019726,2]
[362274598,1748142632064,-340.4,0.00019726,2]
[362274599,1748142632074,-300.72,0.00019726,2]
[362274600,1748142632085,-300.0,0.00019799,2]
[362274601,1748142632094,-245.27788353,0.000198,2]
[362274602,1748142632108,-55.44211647,0.000198,2]
[362274603,1748142632118,-1201.91187664,0.00019868,2]
[362274604,1748142632128,-7.60443009,0.00019887,2]
[362275025,1748142639944,-199.79556991,0.00019887,2]
[362275026,1748142639954,-421.3034415,0.00019899,2]
[362275027,1748142639963,-421.30344143,0.00019899,2]
[362275028,1748142639973,-421.30344143,0.00019899,2]
[362275029,1748142639983,-421.30344143,0.00019899,2]